bitfinex-derivatives/quotes_ETHF0:USTF0_20250927
["timestamp","ask_amount","ask_price","bid_price","bid_amount"]
[1758977734236,2.7579,4020.7,4020.4,0.1989]
[1758977734237,2.82882,4020.5,4020.4,0.1989]
[1758977734537,1.06985,4020.2,4020.1,4.8979]
[1758977734737,2.18385,4020.2,4020.1,4.8979]
[1758977741234,2.75695,4020.2,4020.1,4.3764]
[1758977741939,3.88328602,4020.2,4020.1,4.3764]
[1758977742237,1.56145,4020.2,4020.1,4.8979]
[1758977742440,2.68778602,4020.2,4020.1,4.8979]
[1758977743038,3.31018602,4020.2,4020.1,4.8979]
[1758977745344,3.31018602,4020.2,4020.1,4.3764]
[1758977746041,3.88328602,4020.2,4020.1,4.3764]
[1758977746747,4.16044841,4020.2,4020.1,4.3764]
[1758977747940,4.16044841,4020.2,4020.1,3.2078]
[1758977749343,4.16044841,4020.2,4020.1,3.8097]
[1758977750245,2.75695,4020.2,4020.1,3.8097]
[1758977750445,4.16044841,4020.2,4020.1,3.8097]
[1758977754347,3.58734841,4020.2,4020.1,4.8984]
[1758977755049,3.58634841,4020.2,4020.1,4.8984]
[1758977756351,3.13889841,4020.2,4020.1,4.8984]
[1758977756553,3.58634841,4020.2,4020.1,4.8984]
[1758977758151,0.84,4020.2,4020.1,4.8984]
[1758977758453,0.72045,4020.2,4020.1,4.8984]
[1758977758754,0.72044,4020.3,4020.1,4.4076]
[1758977759053,1.58414,4020.3,4020.2,1.6539]
[1758977763759,1.31114,4020.3,4020.2,6.6539]
[1758977766558,1.91994,4020.3,4020.2,1.6539]
[1758977766854,1.91994,4020.3,4020.2,1.1631]
[1758977767256,1.91994,4020.3,4020.2,1.6539]
[1758977771658,2.51634,4020.3,4020.2,1.1631]
[1758977772052,2.51634,4020.3,4020.2,0.5652]
[1758977773062,2.48265,4020.2,4020.1,3.7905]
[1758977774054,2.48265,4020.2,4020.1,3.2078]
[1758977778059,2.0352,4020.2,4020.1,3.2078]
[1758977778452,0.8516,4020.4,4020.2,0.44745]
[1758977778652,0.8516,4020.4,4020.3,1.6078]
[1758977778653,1.1226,4020.4,4020.3,1.6078]
[1758977779860,1.57003,4020.4,4020.3,1.6078]
[1758977780355,2.15723,4020.4,4020.3,1.6078]
[1758977782662,0.8516,4020.9,4020.4,0.4756]
[1758977782859,1.29898,4020.9,4020.8,1.5928]
[1758977783162,2.68798,4020.9,4020.8,1.1322]
[1758977783370,4.09147841,4020.9,4020.8,0.5827]
[1758977784668,2.46239,4020.8,4020.7,3.2078]
[1758977787063,2.73339,4020.8,4020.7,4.3663]
[1758977787258,2.46239,4020.8,4020.7,4.8269]
[1758977787564,2.73339,4020.8,4020.7,4.8269]
[1758977787761,2.73339,4020.8,4020.7,4.3663]
[1758977787962,2.73339,4020.8,4020.7,3.2078]
[1758977794668,2.73339,4020.8,4020.7,3.7851]
[1758977794975,2.73339,4020.8,4020.7,4.3663]
[1758977798670,1.88999,4020.8,4020.7,4.8269]
[1758977798971,2.15999,4020.8,4020.7,4.8269]
[1758977799378,2.15999,4020.8,4020.7,4.3663]
[1758977801987,2.73239,4020.8,4020.7,4.3663]
[1758977802576,0.897,4021.4,4020.7,3.2078]
[1758977802770,1.61432,4021.4,4021.3,4.8269]
[1758977804067,2.73232,4021.4,4021.3,4.3663]
[1758977805979,2.73232,4021.4,4021.3,3.2078]
[1758977806574,2.73232,4021.4,4021.3,3.7851]
[1758977807382,1.34432,4021.4,4021.3,4.8269]
[1758977808475,0.897,4021.6,4021.5,1.1585]
[1758977808671,2.73957703,4021.6,4021.5,1.6191]
[1758977812383,3.28517703,4021.6,4021.5,1.6191]
[1758977814375,2.1599,4021.6,4021.5,1.6191]
[1758977814686,3.28517703,4021.6,4021.5,1.6191]
[1758977815688,3.28517703,4021.6,4021.5,1.1585]
[1758977817289,3.28517703,4021.6,4021.5,1.60581]
[1758977817790,3.40667703,4021.6,4021.5,1.60581]
[1758977817987,3.40667703,4021.6,4021.5,2.03661]
[1758977818189,3.85397703,4021.6,4021.5,2.03661]
[1758977818984,3.85397703,4021.6,4021.5,1.60581]
[1758977821699,3.85397703,4021.6,4021.5,1.1585]
[1758977821895,3.85397703,4021.6,4021.5,0.5773]
[1758977822098,0.44732,4021.4,4021.3,4.12403]
[1758977822300,3.52319703,4021.4,4021.3,4.68793]
[1758977822600,3.52319703,4021.4,4021.3,4.48903]
[1758977823702,3.52319703,4021.4,4021.3,3.4768]
[1758977824197,3.52319703,4021.4,4021.3,3.92413]
[1758977824503,3.52319703,4021.4,4021.3,4.48803]
[1758977824792,1.9506,4021.4,4021.3,5.47393]
[1758977824997,1.3818,4021.4,4021.3,5.47393]
[1758977825197,1.82912,4021.4,4021.3,5.47393]
[1758977827902,1.82912,4021.4,4021.3,5.20493]
[1758977828105,1.82912,4021.4,4021.3,5.04313]
[1758977828501,0.8104,4021.4,4021.3,5.45933]
[1758977829296,1.3587,4021.4,4021.3,5.45933]
[1758977829604,2.93129703,4021.4,4021.3,5.45933]
[1758977829802,2.93129703,4021.4,4021.3,4.743]
[1758977830002,2.93129703,4021.4,4021.3,5.04213]
[1758977830505,3.46739703,4021.4,4021.3,5.04213]
[1758977831300,3.46739703,4021.4,4021.3,3.92313]
[1758977832001,3.46739703,4021.4,4021.3,4.45503]
[1758977834607,3.46739703,4021.4,4021.3,4.99613]
[1758977835302,0.853,4022.0,4021.9,0.44726]
[1758977835508,0.44721,4022.4,4022.0,1.612]
[1758977835700,1.1735,4022.5,4022.0,2.27431052]
[1758977836300,1.1735,4022.5,4022.0,1.612]
[1758977836608,1.6207,4022.5,4022.0,1.612]
[1758977836809,1.1735,4022.5,4022.0,1.612]
[1758977837006,1.1735,4022.5,4022.0,2.27431052]
[1758977837307,1.1735,4022.5,4022.0,3.39958755]
[1758977837800,0.853,4022.5,4022.0,7.73727703]
[1758977838001,1.2006,4023.0,4022.9,1.93385]
[1758977839003,0.85622368,4023.0,4022.9,1.93698555]
[1758977839704,1.72502368,4023.0,4022.9,1.07613555]
[1758977839897,2.26112368,4023.0,4022.9,1.07613555]
[1758977841005,2.26112368,4023.0,4022.9,1.52328555]
[1758977841202,2.26112368,4023.0,4022.9,1.93698555]
[1758977842202,1.17672368,4023.0,4022.9,1.93698555]
[1758977842405,0.853,4023.9,4023.8,1.93374]
[1758977842613,0.853,4023.9,4023.8,6.53481703]
[1758977843403,0.85525611,4023.9,4023.8,6.53481703]
[1758977843613,0.00225611,4023.9,4023.8,6.53481703]
[1758977845697,0.00225611,4023.9,4023.8,6.53381703]
[1758977846701,0.8439,4024.4,4024.3,1.9445]
[1758977846897,0.8439,4024.4,4024.3,6.54457703]
[1758977847422,1.96917703,4024.4,4024.3,3.4748]
[1758977847707,1.96917703,4024.4,4024.3,3.2078]
[1758977847708,8.09719035,4024.4,4024.3,3.2078]
[1758977851811,8.09719035,4024.4,4024.3,3.6548]
[1758977853012,8.09719035,4024.4,4024.3,3.2078]
[1758977853509,8.09719035,4024.4,4024.3,3.6548]
[1758977853710,8.09719035,4024.4,4024.3,3.2078]
[1758977854110,8.09719035,4024.4,4024.3,3.6548]
[1758977854606,8.36419035,4024.4,4024.3,3.6548]
[1758977854808,8.36419035,4024.4,4024.3,3.2078]
[1758977856005,8.81118035,4024.4,4024.3,3.2078]
[1758977858123,5.84611332,4024.4,4024.3,3.747]
[1758977858413,6.39431332,4024.4,4024.3,4.194]
[1758977858616,6.39431332,4024.4,4024.3,4.7531]
[1758977859519,1.66131332,4024.4,4024.3,4.7531]
[1758977859820,1.97191332,4024.4,4024.3,4.7531]
[1758977860014,3.36419035,4024.4,4024.3,3.747]
[1758977860210,3.81118035,4024.4,4024.3,3.2078]
[1758977860916,3.36419035,4024.4,4024.3,3.2078]
[1758977861209,3.36419035,4024.4,4024.3,3.747]
[1758977861411,3.36419035,4024.4,4024.3,3.2078]
[1758977863111,3.36419035,4024.4,4024.3,3.6548]
[1758977863319,3.36419035,4024.4,4024.3,3.2078]
[1758977864615,3.36419035,4024.4,4024.3,3.6548]
[1758977864817,3.36419035,4024.4,4024.3,3.2078]
[1758977868417,3.81118035,4024.4,4024.3,3.2078]
[1758977869118,3.36419035,4024.4,4024.3,3.2078]
[1758977869816,3.81118035,4024.4,4024.3,3.2078]
[1758977870511,2.68590332,4024.4,4024.3,3.2078]
[1758977870710,4.08648435,4024.4,4024.3,3.2078]
[1758977870909,3.63949435,4024.4,4024.3,3.2078]
[1758977871117,4.08648435,4024.4,4024.3,3.2078]
[1758977871319,2.41671,4024.2,4024.1,0.1988]
[1758977871518,2.68271,4024.2,4024.1,0.1988]
[1758977871718,2.68271,4024.2,4023.8,3.2078]
[1758977871719,1.9697,4023.9,4023.8,4.19405]
[1758977872015,3.63628103,4023.9,4023.8,3.747]
[1758977872317,4.08332103,4023.9,4023.8,3.2078]
[1758977872517,3.63628103,4023.9,4023.8,3.2078]
[1758977872817,4.08332103,4023.9,4023.8,3.2078]
[1758977875620,2.2357,4023.9,4023.8,4.20095]
[1758977875823,2.2357,4023.9,4023.8,4.2846]
[1758977878320,2.68274,4023.9,4023.8,4.2846]
[1758977879022,2.2357,4023.9,4023.8,5.10215]
[1758977879623,2.2357,4023.9,4023.8,4.73165]
[1758977880523,1.1099,4023.9,4023.8,5.36815]
[1758977881527,0.266,4023.9,4023.8,5.36815]
[1758977882119,1.0407,4024.2,4024.1,1.89432]
[1758977882427,0.7747,4024.2,4024.1,1.89432]
[1758977882821,1.346,4024.2,4024.1,1.0768]
[1758977883019,1.9083,4024.2,4024.1,1.0768]
[1758977883222,1.9083,4024.2,4024.1,1.52382]
[1758977883524,0.00221332,4024.4,4024.3,1.5238]
[1758977883828,0.00221332,4024.4,4024.3,5.1021]
[1758977884525,0.77691332,4024.4,4024.3,5.1021]
[1758977886028,0.00221332,4024.4,4024.3,11.50268103]
[1758977887029,0.7747,4025.1,4025.0,1.89202]
[1758977887229,0.7747,4025.1,4025.0,2.15702]
[1758977887923,0.77759955,4025.1,4025.0,2.15702]
[1758977888231,1.34889955,4025.1,4025.0,1.3418]
[1758977888431,1.34889955,4025.1,4025.0,1.25802]
[1758977888432,1.88299955,4025.1,4025.0,1.25802]
[1758977889029,2.2311,4025.0,4024.9,0.71193]
[1758977889223,2.2311,4025.0,4024.9,0.265]
[1758977889728,2.2311,4025.0,4024.9,0.44693]
[1758977890122,1.27373,4024.9,4024.8,3.2078]
[1758977890318,1.9215,4024.9,4024.8,3.2078]
[1758977890631,1.9215,4024.9,4024.8,4.16824]
[1758977891031,1.3874,4024.9,4024.8,4.71174]
[1758977891230,0.8268,4024.9,4024.8,5.06584]
[1758977891428,0.8268,4024.9,4024.8,5.33084]
[1758977892233,0.82969955,4025.1,4025.0,1.057]
[1758977892531,0.82969955,4025.1,4025.0,1.4111]
[1758977892922,0.00289955,4025.1,4025.0,2.12302]
[1758977893226,0.82969955,4025.1,4025.0,1.85802]
[1758977893434,0.00289955,4025.1,4025.0,2.12302]
[1758977894132,0.82969955,4025.1,4025.0,2.12302]
[1758977894926,0.82969955,4025.1,4025.0,1.85802]
[1758977895126,0.82969955,4025.1,4025.0,2.12302]
[1758977895335,1.39029955,4025.1,4025.0,2.12302]
[1758977896739,1.39029955,4025.1,4025.0,1.85802]
[1758977896935,1.39029955,4025.1,4025.0,1.76892]
[1758977897130,1.39029955,4025.1,4025.0,2.12302]
[1758977897329,0.82969955,4025.1,4025.0,2.12302]
[1758977900037,1.92439955,4025.1,4025.0,1.76892]
[1758977900736,1.92439955,4025.1,4025.0,2.12302]
[1758977901838,2.37130955,4025.1,4025.0,1.76892]
[1758977902230,1.92439955,4025.1,4025.0,1.76892]
[1758977903136,2.37130955,4025.1,4025.0,1.22542]
[1758977903336,2.37130955,4025.1,4025.0,0.71192]
[1758977903733,2.32743,4024.9,4024.8,3.2078]
[1758977903934,2.32743,4024.9,4024.8,3.65474]
[1758977904845,1.1067,4026.0,4025.9,0.523]
[1758977905034,2.1871,4026.0,4025.9,1.0436]
[1758977905339,2.1871,4026.0,4025.9,1.49042]
[1758977906038,2.18977411,4026.0,4025.9,1.49323991]
[1758977906940,2.18977411,4026.0,4025.9,0.00281991]
[1758977907147,2.18977411,4026.0,4025.9,0.52581991]
[1758977907739,2.18977411,4026.0,4025.9,0.00281991]
[1758977908946,0.94009065,4028.3,4028.1,2.488]
[1758977909146,0.3066,4030.0,4028.6,11.16296]
[1758977909438,1.387,4030.0,4029.7,1.40058103]
[1758977909647,1.387,4030.0,4029.9,3.65418]
[1758977909841,1.38937935,4030.0,4029.9,4.79880247]
[1758977910034,1.38937935,4030.0,4029.9,5.67153736]
[1758977910236,1.38937935,4030.0,4029.9,4.79880247]
[1758977910743,1.38937935,4030.0,4029.9,5.06280247]
[1758977910943,2.18947935,4030.0,4029.9,5.06280247]
[1758977911337,3.79155673,4030.0,4029.9,5.45017726]
[1758977911543,3.79155673,4030.0,4029.9,4.00431404]
[1758977912235,8.79155673,4030.0,4029.9,4.00431404]
[1758977915050,3.2078,4031.4,4029.9,4.00431404]
[1758977915237,0.3066,4033.5,4032.8,0.8244]
[1758977915442,0.3066,4033.5,4033.2,3.2078]
[1758977915642,0.3066,4033.5,4033.3,0.83068212]
[1758977915643,0.267,4033.4,4033.3,0.83068212]
[1758977916041,0.27009147,4033.4,4033.3,0.83308798]
[1758977917149,1.07019147,4033.4,4033.3,1.27908798]
[1758977917350,1.07019147,4033.4,4033.3,0.83308798]
[1758977918145,6.07019147,4033.4,4033.3,0.83308798]
[1758977918345,6.51619147,4033.4,4033.3,0.83308798]
[1758977918550,6.07019147,4033.4,4033.3,0.83308798]
[1758977918946,14.96019147,4033.4,4033.3,0.83308798]
[1758977919153,14.16009147,4033.4,4032.7,3.2078]
[1758977919454,9.16009147,4033.4,4032.7,3.2078]
[1758977919650,0.7994,4033.3,4032.7,3.2078]
[1758977919855,0.44604,4033.0,4032.7,3.2078]
[1758977920147,0.7994,4032.8,4032.7,3.209758]
[1758977920353,10.6194,4032.8,4032.7,3.209758]
[1758977920952,15.6194,4032.8,4032.7,3.209758]
[1758977921653,7.4394,4032.8,4032.7,3.209758]
[1758977921853,2.4394,4032.8,4032.7,3.209758]
[1758977922251,0.267,4032.9,4032.7,3.209758]
[1758977922553,0.267,4032.9,4032.8,0.8244]
[1758977922948,1.0664,4032.9,4032.8,0.8244]
[1758977923150,0.267,4032.9,4032.8,0.8244]
[1758977925955,1.24546,4032.8,4032.7,3.209758]
[1758977926159,1.24546,4032.8,4032.7,0.001958]
[1758977926363,2.32586,4032.8,4032.7,0.001958]
[1758977927154,11.47586,4032.8,4032.7,0.001958]
[1758977927353,19.68366,4032.8,4032.7,0.001958]
[1758977927557,0.44612,4032.3,4032.2,3.2078]
[1758977927755,11.83192,4032.3,4032.2,3.2078]
[1758977928764,11.83192,4032.3,4032.2,3.21009965]
[1758977928964,11.83192,4032.3,4032.2,0.00229965]
[1758977929459,3.2078,4038.2,4037.6,0.8244]
[1758977929674,1.032,4037.9,4037.6,3.2078]
[1758977929864,0.3,4037.8,4037.5,0.3309]
[1758977930061,10.33,4037.8,4037.7,3.2078]
[1758977930266,0.44552,4037.7,4037.6,0.8244]
[1758977930451,8.97795572,4037.7,4037.6,0.00222618]
[1758977930660,54.33242572,4037.7,4037.0,0.3309]
[1758977930862,54.33242572,4037.7,4037.0,1.1553]
[1758977930863,7.78967898,4037.1,4037.0,1.1553]
[1758977931155,16.11967898,4037.1,4036.1,3.2078]
[1758977931366,43.996,4037.0,4036.5,0.3309]
[1758977931561,40.8,4036.9,4036.5,0.33311667]
[1758977931761,49.13,4036.9,4036.5,0.33311667]
[1758977932255,38.993,4036.8,4036.5,0.33311667]
[1758977932454,48.643,4036.8,4036.5,0.33311667]
[1758977932655,3.97166389,4036.7,4036.5,0.33311667]
[1758977932858,18.12166389,4036.7,4036.5,0.00221667]
[1758977933264,9.15,4036.7,4036.6,1.1832]
[1758977933563,0.307,4038.5,4037.0,0.75769]
[1758977933865,0.307,4038.5,4038.0,4.391]
[1758977933866,0.307,4038.4,4038.0,4.391]
[1758977934065,38.687,4039.1,4038.0,4.391]
[1758977934066,45.93436389,4039.2,4038.2,1.1832]
[1758977934266,38.995,4039.1,4038.5,3.2078]
[1758977934566,0.309,4039.0,4038.6,0.78128319]
[1758977934761,9.39,4039.0,4038.7,0.78128319]
[1758977935065,0.309,4038.9,4038.8,1.96448319]
[1758977935366,0.309,4038.9,4038.5,4.391]
[1758977935367,9.1217,4038.9,4038.5,4.391]
[1758977935567,9.1217,4038.9,4038.6,0.78012665]
[1758977935865,9.1217,4038.9,4038.7,1.96332665]
[1758977936062,9.1217,4038.9,4038.7,1.1832]
[1758977936365,0.309,4038.8,4038.6,1.1832]
[1758977936565,9.409,4038.8,4038.6,1.1832]
[1758977936861,9.1,4038.8,4038.6,1.1832]
[1758977937176,0.309,4038.7,4038.6,1.1832]
[1758977937356,9.1217,4038.7,4038.6,0.78087898]
[1758977937563,1.1627,4038.6,4038.5,3.2078]
[1758977937763,1.1627,4038.0,4037.9,3.2078]
[1758977937964,7.0727,4038.0,4037.9,3.2078]
[1758977938269,1.53,4038.0,4037.9,3.2078]
[1758977938472,40.8,4038.2,4037.9,4.391]
[1758977938773,0.31,4038.1,4038.0,1.1832]
[1758977938961,4.51,4038.1,4038.0,1.1832]
[1758977939865,4.2,4038.1,4038.0,1.1832]
[1758977940065,4.51,4038.1,4038.0,1.1832]
[1758977940473,0.31,4038.1,4038.0,1.97163244]
[1758977940769,0.31,4038.1,4037.9,3.2078]
[1758977940770,1.60819,4038.0,4037.9,3.2078]
[1758977940964,11.64759,4038.0,4037.9,3.2078]
[1758977942573,1.1627,4037.3,4037.1,4.391]
[1758977942771,0.31,4037.2,4037.1,4.391]
[1758977944572,3.2078,4038.0,4037.2,1.1832]
[1758977944768,0.44555,4037.5,4037.2,0.47633244]
[1758977944971,0.31,4037.4,4037.3,1.65953244]
[1758977945268,0.31,4037.4,4037.3,1.1832]
[1758977946874,0.44555,4037.5,4037.3,1.1832]
[1758977947177,0.44551,4037.8,4037.5,0.3121]
[1758977947377,0.75453,4037.7,4037.6,1.1832]
[1758977947680,6.56453,4037.7,4037.6,1.1832]
[1758977947974,0.44557,4037.3,4037.2,1.2127]
[1758977948168,0.75457,4037.3,4037.2,1.2127]
[1758977948365,1.2204,4037.2,4037.1,3.2078]
[1758977948772,1.66604,4036.6,4036.5,0.00221667]
[1758977949072,1.97504,4036.6,4036.5,0.00221667]
[1758977949471,1.97504,4036.6,4036.5,1.21491667]
[1758977950472,12.20504,4036.6,4036.5,0.00221667]
[1758977950878,17.20504,4036.6,4036.5,0.00221667]
[1758977951069,58.00504,4036.6,4036.5,0.00221667]
[1758977951377,1.66614,4035.7,4035.6,3.2078]
[1758977951568,0.44578,4035.3,4035.2,1.2127]
[1758977951769,0.308,4035.3,4035.2,1.95520711]
[1758977951969,0.308,4035.3,4035.2,2.43153955]
[1758977952183,0.3099358,4035.3,4035.2,2.43331407]
[1758977953465,0.3099358,4035.3,4035.2,1.95698163]
[1758977955674,1.5303358,4035.3,4035.2,0.74428163]
[1758977955875,1.5303358,4035.3,4035.2,0.00177452]
[1758977956178,15.62199969,4035.3,4035.2,0.73854666]
[1758977956878,15.62199969,4035.3,4035.2,0.00177452]
[1758977957178,16.06777969,4035.3,4035.2,0.73172641]
[1758977957579,16.06777969,4035.3,4035.2,0.00177452]
[1758977958185,21.06777969,4035.3,4035.2,0.00177452]
[1758977958977,59.72677969,4035.3,4035.2,0.00177452]
[1758977959176,59.72677969,4035.3,4035.2,0.7314162]
[1758977959577,1.66623,4034.9,4034.8,0.1982]
[1758977959887,1.66623,4034.9,4034.0,3.6982]
[1758977959888,11.00198,4034.9,4034.2,1.85482073]
[1758977960082,1.66629,4034.3,4034.2,1.2127]
[1758977960385,0.44592,4034.1,4034.0,4.9109]
[1758977960583,2.58332,4034.1,4034.0,3.21081948]
[1758977960776,10.45332,4034.1,4034.0,0.00301948]
[1758977963387,10.14632,4034.1,4034.0,0.00301948]
[1758977963690,10.45232,4034.1,4034.0,0.00301948]
[1758977964883,0.4459,4034.2,4034.1,1.2273]
[1758977965085,0.7509,4034.2,4034.1,0.47633244]
[1758977965285,0.7509,4034.2,4034.1,1.70363244]
[1758977965985,10.0606,4034.2,4034.1,1.2273]
[1758977966191,0.44592,4034.1,4034.0,0.00301948]
[1758977966495,1.57562,4034.1,4034.0,0.00301948]
[1758977966794,11.16562,4034.1,4034.0,0.00301948]
[1758977968896,6.98682,4034.1,4034.0,1.98491948]
[1758977969194,5.85712,4034.1,4034.0,2.79661948]
[1758977969394,10.95848389,4034.1,4034.0,2.79661948]
[1758977970294,10.95848389,4034.1,4034.0,1.98491948]
[1758977971097,10.95848389,4034.1,4034.0,0.00301948]
[1758977971599,3.16684,4033.9,4033.8,0.1983]
[1758977971791,12.47084,4033.9,4033.8,0.1983]
[1758977971990,3.16687,4033.6,4033.5,3.2078]
[1758977972295,16.59253389,4033.6,4033.5,3.2078]
[1758977972490,16.59253389,4033.6,4033.5,3.21021349]
[1758977972792,16.59253389,4033.6,4033.5,0.00241349]
[1758977972999,2.03723,4033.1,4033.0,3.6982]
[1758977973189,16.00259389,4033.1,4033.0,4.4351]
[1758977973396,16.00259389,4033.1,4033.0,5.1897]
[1758977973594,7.44259389,4033.1,4033.0,5.1897]
[1758977973889,7.44259389,4033.1,4033.0,3.9624]
[1758977974094,7.44259389,4033.1,4033.0,3.2102381]
[1758977975203,7.44259389,4033.1,4033.0,0.0024381]
[1758977975899,0.86964,4033.0,4032.9,0.02479636]
[1758977976099,3.59054,4033.0,4032.9,0.02479636]
[1758977976599,3.16695,4032.9,4032.8,0.1983]
[1758977976799,11.83995,4032.9,4032.8,0.2005383]
[1758977977497,50.51995,4032.9,4032.8,0.2005383]
[1758977977900,50.51995,4032.9,4032.8,0.0022383]
[1758977978994,53.72775,4032.9,4032.8,0.0022383]
[1758977979303,0.44614,4032.1,4032.0,3.6694]
[1758977979501,7.44070389,4032.1,4032.0,4.90033244]
[1758977979801,7.44070389,4032.1,4032.0,6.93933244]
[1758977980299,7.44352586,4032.1,4032.0,6.94218832]
[1758977980498,6.31382586,4032.1,4032.0,6.94218832]
[1758977980694,6.31382586,4032.1,4032.0,6.46585588]
[1758977980695,7.44352586,4032.1,4032.0,6.46585588]
[1758977980900,17.61352586,4032.1,4032.0,6.46585588]
[1758977981198,17.61352586,4032.1,4032.0,6.00425588]
[1758977982802,17.61352586,4032.1,4032.0,5.19255588]
[1758977985193,17.61352586,4032.1,4032.0,3.21065588]
[1758977986795,17.61352586,4032.1,4032.0,0.00285588]
[1758977989304,7.44352586,4032.1,4032.0,2.79645588]
[1758977989607,7.44352586,4032.1,4032.0,3.25805588]
[1758977990508,14.23352586,4032.1,4032.0,3.25805588]
[1758977992009,14.23352586,4032.1,4032.0,2.79645588]
[1758977992701,14.23352586,4032.1,4032.0,1.98475588]
[1758977992901,14.23352586,4032.1,4032.0,0.00285588]
[1758977993507,14.23352586,4032.1,4032.0,1.12115588]
[1758977993802,14.23352586,4032.1,4032.0,0.00285588]
[1758977994612,14.84047533,4032.1,4032.0,0.00285588]
[1758977996310,0.7613,4031.6,4031.5,3.2078]
[1758977996507,16.51750336,4031.6,4031.5,3.2078]
[1758977997222,16.51750336,4031.6,4031.0,5.5708]
[1758977997223,3.09395,4031.1,4031.0,5.5708]
[1758977997431,3.38895,4031.1,4031.0,5.57386852]
[1758977997618,3.38895,4031.1,4031.0,6.05020096]
[1758977997819,3.38895,4031.1,4031.0,6.81730096]
[1758977999724,2.25155,4031.1,4031.0,6.81730096]
[1758977999925,1.8053,4031.1,4031.0,6.81730096]
[1758978000330,2.6477,4031.8,4031.7,1.5502]
[1758978000524,11.82787,4031.8,4031.7,2.6685]
[1758978000721,11.53387,4031.8,4031.7,2.6685]
[1758978000915,11.82787,4031.8,4031.7,2.6685]
[1758978001121,3.09389,4031.6,4031.5,2.3676]
[1758978001419,4.3452,4031.9,4031.6,0.47633244]
[1758978001728,14.0293848,4031.9,4031.8,2.6685]
[1758978001916,14.3223848,4031.9,4031.8,2.6685]
[1758978002123,14.3223848,4031.9,4031.8,3.14483244]
[1758978002322,15.0836848,4031.9,4031.8,3.14483244]
[1758978002527,16.9700848,4031.9,4031.8,3.14483244]
[1758978003227,0.25,4031.9,4031.8,3.14483244]
[1758978003426,0.00282197,4032.1,4032.0,2.0164]
[1758978003624,3.2078,4032.4,4032.0,1.2333]
[1758978003625,2.73428953,4032.4,4032.0,1.2333]
[1758978003827,1.1374,4033.5,4032.9,2.6685]
[1758978003828,3.2078,4033.0,4032.9,2.6685]
[1758978004128,3.5008,4033.0,4032.9,2.6685]
[1758978004325,3.2078,4033.0,4032.9,2.6685]
[1758978004728,3.50329881,4033.0,4032.9,2.6685]
[1758978004926,3.21029881,4033.0,4032.9,2.6685]
[1758978005128,0.29549881,4033.0,4032.9,2.6685]
[1758978005530,0.00249881,4033.0,4032.9,2.6685]
[1758978005729,0.29549881,4033.0,4032.9,2.6685]
[1758978005929,0.00249881,4033.0,4032.9,2.6685]
[1758978006130,0.29449881,4033.0,4032.9,2.6685]
[1758978006330,0.00249881,4033.0,4032.9,2.6685]
[1758978006633,0.29449881,4033.0,4032.9,2.6685]
[1758978006835,0.00249881,4033.0,4032.9,2.6685]
[1758978007029,0.29449881,4033.0,4032.9,2.6685]
[1758978007929,0.00249881,4033.0,4032.9,2.6685]
[1758978008130,0.29349881,4033.0,4032.9,7.6685]
[1758978009033,3.08685,4032.9,4032.8,3.2078]
[1758978009233,10.98685,4032.9,4032.8,3.2078]
[1758978009533,10.98685,4032.9,4032.8,5.111]
[1758978009728,0.00249881,4033.0,4032.9,2.6319]
[1758978009928,0.29349881,4033.0,4032.9,2.6319]
[1758978011437,1.46613881,4033.0,4032.9,2.6319]
[1758978011733,7.95895217,4033.0,4032.9,2.6319]
[1758978013224,1.17265,4032.9,4032.8,3.2078]
[1758978013431,3.08693,4032.2,4032.1,3.9591]
[1758978013732,3.37693,4032.2,4032.1,3.9591]
[1758978013932,2.19793,4032.2,4032.1,5.8397]
[1758978014328,1.7518,4032.2,4032.1,5.8397]
[1758978014837,3.37693,4032.2,4032.1,5.8397]
[1758978015028,12.36693,4032.2,4032.1,3.9591]
[1758978015227,12.36693,4032.2,4032.1,3.2078]
[1758978015531,12.36693,4032.2,4032.1,5.111]
[1758978016122,12.36693,4032.2,4032.1,3.2078]
[1758978016328,3.08696,4031.9,4031.8,1.9032]
[1758978016528,3.37596,4031.9,4031.8,1.9032]
[1758978016730,0.289,4031.9,4031.8,2.6319]
[1758978016931,1.17272,4032.3,4032.2,2.6319]
[1758978017132,5.15172,4032.3,4032.2,2.6319]
[1758978018938,3.50272,4032.3,4032.2,2.6319]
[1758978019140,3.79072,4032.3,4032.2,2.6319]
[1758978019531,8.07072,4032.3,4032.2,2.6319]
[1758978019940,7.78272,4032.3,4032.2,2.6319]
[1758978020144,8.07072,4032.3,4032.2,2.6319]
[1758978020440,9.98492,4032.3,4032.2,1.9032]
[1758978021935,0.44614,4032.1,4032.0,0.4616]
[1758978022239,7.95355336,4032.1,4032.0,1.9032]
[1758978022441,3.08696,4031.9,4031.8,1.9032]
[1758978022933,3.37396,4031.9,4031.8,1.9032]
[1758978023343,3.37396,4031.9,4031.8,2.6319]
[1758978023745,2.9278,4031.9,4031.8,2.6319]
[1758978023945,1.7488,4031.9,4031.8,2.6319]
[1758978025943,2.19496,4031.9,4031.8,2.6319]
[1758978026645,1.7488,4031.9,4031.8,2.6319]
[1758978027338,2.19496,4031.9,4031.8,2.6319]
[1758978027540,12.17146,4031.9,4031.8,1.1519]
[1758978027842,1.4991,4031.7,4031.6,5.0628]
[1758978028041,2.9116,4031.7,4031.6,5.8411]
[1758978028544,2.9116,4031.7,4031.6,5.0628]
[1758978028545,3.35778,4031.7,4031.6,5.0628]
[1758978028749,12.40778,4031.7,4031.6,5.0628]
[1758978029339,12.40778,4031.7,4031.6,3.2078]
[1758978029540,3.35778,4031.7,4031.6,5.8411]
[1758978029745,4.94128,4031.7,4031.6,5.8411]
[1758978029944,4.4951,4031.7,4031.6,5.8411]
[1758978031247,3.7416,4031.7,4031.6,5.8411]
[1758978032150,3.90178,4031.7,4031.6,5.8411]
[1758978032646,4.93928,4031.7,4031.6,5.8411]
[1758978032847,6.06578,4031.7,4031.6,5.8411]